Cogmind - Beta 13 @@@ ROGUE MODE // 2024.04.29 @ 22:24:59 Player: Falling_Sands Result: Destroyed by H-55 Commando with Gauss Rifle Performance ------------- Evolutions (2) 1000 Regions Visited (3) 600 Robots Destroyed (41) 205 Value Destroyed (863) 863 Prototype IDs (2) 40 Alien Tech Used (0) 0 Bonus (0) 0 TOTAL SCORE: 2708 Bonus ------- None Cogmind --------- Core Integrity 0/550 Matter 284/300 Energy 100/100 System Corruption 0% Temperature Cool (0) Movement Rolling (95) Ox1 Location -8/Materials Parts ------- > --- POWER (1) -------- (None) > --- PROPULSION (4) --- Wheel > --- UTILITY (4) ------ Medium Storage Unit Signal Interpreter Hardened Light Armor Plating > --- WEAPON (2) ------- Flail > --- INVENTORY (10) --- Large Storage Unit High-capacity Matter Pod (200) Peak State ------------ > --- POWER ------------ Improved Ion Engine > --- PROPULSION ------- Improved Aluminum Leg Improved Aluminum Leg > --- UTILITY ---------- Medium Storage Unit Structural Scanner Hardened Light Armor Plating > --- WEAPON ----------- EM Shotgun EM Shotgun > --- INVENTORY -------- Improved Aluminum Leg Improved Aluminum Leg Wheel Wheel Large Storage Unit Sensor Array Hardened Light Armor Plating Grenade Launcher [Rating: 15] Favorites ----------- Power Improved Ion Engine Engine Improved Ion Engine Power Core Light Nuclear Core Propulsion Improved Aluminum Leg Leg Improved Aluminum Leg Wheel Wheel Hover Unit Hover Unit Utility Medium Storage Unit Device Sensor Array Storage Medium Storage Unit Processor Signal Interpreter Protection Hardened Light Armor Plating Weapon EM Shotgun Energy Gun EM Shotgun Ballistic Gun Assault Rifle Launcher Grenade Launcher Special Weapon Welding Torch Impact Weapon Flail Build | -11 -10 -9 -8 ------- Run | Yrd Mat Mat Mat Slots Evolved 4 | . . 2 2 Power . | . . . . Propulsion 2 | . . . 2 Utility 2 | . . 2 . Weapon . | . . . . Parts Attached 43 | 10 14 8 11 Power 4 | 1 1 1 1 Engine 3 | 1 1 1 . Core 1 | . . . 1 Reactor . | . . . . Propulsion 17 | 6 5 1 5 Treads . | . . . . Leg 6 | 2 2 1 1 Wheel 10 | 4 2 . 4 Hover 1 | . 1 . . Flight . | . . . . Utility 14 | 1 6 5 2 Device 5 | 1 2 2 . Storage 2 | . 2 . . Processor 2 | . 1 1 . Hackware . | . . . . Protection 5 | . 1 2 2 Artifact . | . . . . Weapon 8 | 2 2 1 3 Energy Gun 4 | 1 2 . 1 Energy Cannon . | . . . . Ballistic Gun 1 | 1 . . . Ballistic Cannon . | . . . . Launcher 1 | . . 1 . Special Weapon 1 | . . . 1 Impact Weapon 1 | . . . 1 Slashing Weapon . | . . . . Piercing Weapon . | . . . . Special Melee Weapon . | . . . . Unidentified Prototypes . | . . . . Parts Lost 16 | . . 2 14 Power 2 | . . . 2 Propulsion 6 | . . . 6 Utility 4 | . . 1 3 Weapon 4 | . . 1 3 Highest Loss Streak 7 | . . 1 7 To Critical Strikes . | . . . . Average Slot Usage (%) 87 | . 98 79 64 Engine 11 | . 14 11 3 Leg 15 | . 14 22 11 Wheel 8 | . 13 . 1 Device 8 | . 9 5 7 Storage 8 | . 7 11 9 Processor 5 | . 4 1 9 Protection 6 | . 4 14 5 Energy Gun 15 | . 20 12 3 Ballistic Gun 4 | . 7 . . Launcher 1 | . . 2 3 Impact Weapon 1 | . . . 5 Naked Turns . | . . . . Heaviest Build 33 | 8 32 33 27 Greatest Support 39 | 20 26 26 39 Greatest Overweight (x) 4 | . 1 1 4 Average Overweight (x) . | . . . 1 Largest Inventory Capacity 15 | 5 15 10 10 Average Capacity 8 | 5 7 10 10 Most Carried 9 | 5 9 9 8 Average Carried 6 | 3 6 8 5 Final Capacity 10 | 5 10 10 10 Final Carried 9 | 3 9 7 2 Class Distribution -------------------- 100% | Mutant Dominant Class ---------------- Mutant | -10/Materials Mutant | -9/Materials Mutant | -8/Materials Resources | -11 -10 -9 -8 ----------- Run | Yrd Mat Mat Mat Matter Collected 883 | 300 204 176 203 Remotely . | . . . . Salvage Created 1106 | 146 388 279 293 Parts 86 | 12 29 28 17 Haulers Intercepted . | . . . . Recyclers Shooed 4 | . 2 . 2 Parts Field Recycled . | . . . . Retrieved Matter . | . . . . Parts Self-Destructed . | . . . . Prevented . | . . . . Kills | -11 -10 -9 -8 ------- Run | Yrd Mat Mat Mat Combat Hostiles Destroyed 24 | 1 8 10 5 Melee 1 | . . . 1 Guns 15 | 1 8 6 . AOE 5 | . . 4 1 Classes Destroyed 8 | 3 3 1 1 Worker 4 | 1 . . 3 Builder 2 | . . . 2 Tunneler 4 | 4 . . . Operator 3 | . 2 . 1 Watcher 4 | . 3 1 . Swarmer 10 | . 3 7 . Grunt 12 | 1 5 1 5 Sentry 2 | . . 2 . Best Kill Streak 4 | 3 3 4 3 Combat Bots Only 4 | 1 3 4 3 Max Kills in Single Turn 3 | 1 1 3 1 Gunslinging . | . . . . Exploded 3 | . . 3 1 Melee 1 | . . . 1 Uniques/NPCs Destroyed . | . . . . Combat | -11 -10 -9 -8 -------- Run | Yrd Mat Mat Mat Hostile Shots Fired 263 | 4 35 35 189 Missed 67 | 2 13 7 45 Damage Taken 2367 | 21 265 343 1738 Core 632 | 11 48 10 563 Absorbed by Shields . | . . . . Core Remaining (%) 89 | 95 76 97 . Volleys Fired 103 | 20 36 22 25 Largest 2 | 1 2 2 2 Hottest 90 | 50 90 90 80 Shots Fired 149 | 20 71 27 31 Gun 138 | 20 71 27 20 Cannon . | . . . . Launcher 6 | . . . 6 Special 5 | . . . 5 Kinetic 28 | . 28 . . Thermal 52 | 20 27 . 5 Explosive 6 | . . . 6 Electromagnetic 63 | . 16 27 20 Robot Hit Streak 9 | 9 8 8 6 Robot Miss Streak 4 | 1 4 3 2 Penetration Max . | . . . . Secondary Targets 1 | . 1 . . Max Gunslinging Chain 1 | . 1 . . Shots Hit Robots 124 | 16 50 23 35 Core Hits 61 | 7 24 16 14 Critical Kills . | . . . . Critical Parts Destroyed . | . . . . Critical Strikes 3 | 2 1 . . Burn 3 | 2 1 . . Melee Attacks 29 | . . . 29 Impact 29 | . . . 29 Slashing . | . . . . Piercing . | . . . . Sneak Attacks 2 | . . . 2 Combat Hostiles . | . . . . Follow-up Attacks . | . . . . Damage Inflicted 2561 | 215 626 434 1286 Guns 1357 | 215 626 275 241 Cannons . | . . . . Explosions 539 | . . 159 380 Melee 658 | . . . 658 Ramming . | . . . . Kinetic 203 | . 203 . . Thermal 629 | 215 248 159 7 Explosive 380 | . . . 380 Electromagnetic 691 | . 175 275 241 Impact 658 | . . . 658 Slashing . | . . . . Piercing . | . . . . Highest Corruption . | . . . . Average Corruption . | . . . . Corruption Purged . | . . . . Corruption Blocked . | . . . . Overload Shots . | . . . . Overflow Damage 102 | . . . 102 Projectiles . | . . . . Explosions . | . . . . Melee 102 | . . . 102 Knockbacks 2 | . . . 2 Impact 2 | . . . 2 Kinetic . | . . . . Secondary . | . . . . Self-Inflicted Damage 69 | . . 10 59 Shots 4 | . . 1 3 Rammed . | . . . . Targets Rammed . | . . . . Kicked . | . . . . Crushed . | . . . . Highest Temperature 209 | 62 209 124 147 Average Temperature 46 | 23 45 53 54 Received Heat Transfer 735 | 12 111 90 522 Siege Activations . | . . . . Robots Corrupted 1 | . . . 1 Combat Hostiles 1 | . . . 1 Parts Fried 3 | . . . 3 Impact Corruptions 6 | . . . 6 Robots Melted . | . . . . Combat Hostiles . | . . . . Parts Melted 4 | 1 3 . . Heat Transferred 1816 | 777 814 150 75 Parts Sabotaged . | . . . . Parts Stolen . | . . . . Parts Stripped . | . . . . Power Chain Reactions 2 | . . 2 . Alert | -11 -10 -9 -8 ------- Run | Yrd Mat Mat Mat Peak Influence 323 | 45 209 323 307 Initial 135 | . 29 5 135 Average 135 | 21 101 198 245 Maximum Alert Level 1 | . 1 1 1 Low Security (%) 70 | 100 96 31 20 Level 1 29 | . 3 68 79 Level 2 . | . . . . Level 3 . | . . . . Level 4 . | . . . . Level 5 . | . . . . High Security . | . . . . Max Security . | . . . . Squads Dispatched 4 | . 1 2 1 Investigation 4 | . 1 2 1 Extermination . | . . . . Reinforcement . | . . . . Assault . | . . . . Garrison . | . . . . Intercept . | . . . . Searches Triggered . | . . . . Construction Impeded . | . . . . Haulers Reinforced . | . . . . Active Scanning Responses . | . . . . Cargo Convoy Interrupts . | . . . . Stealth | -11 -10 -9 -8 --------- Run | Yrd Mat Mat Mat Distress Signals 3 | . 1 1 1 Communications Jammed . | . . . . Distress Signals . | . . . . Times Spotted 40 | 1 14 13 12 Peak Tracking Total 6 | 1 3 5 6 Tactical Retreats 4 | . 1 1 2 Traps | -11 -10 -9 -8 ------- Run | Yrd Mat Mat Mat Traps Triggered 3 | . 1 2 . Indirectly . | . . . . Trap Hack Attempts . | . . . . Triggered . | . . . . Disarmed . | . . . . Reprogrammed . | . . . . Reused . | . . . . Traps Extracted . | . . . . Installed . | . . . . Triggered . | . . . . Machines | -11 -10 -9 -8 ---------- Run | Yrd Mat Mat Mat Machines Disabled 2 | . . 1 1 Max in Single Turn 1 | . . 1 1 Machines Repaired . | . . . . Machines Dismantled . | . . . . Machines Sabotaged . | . . . . Overloaded Fab Kills . | . . . . Hacking | -11 -10 -9 -8 --------- Run | Yrd Mat Mat Mat Machines Accessed 8 | . 7 . 1 Terminals 7 | . 6 . 1 Fabricators . | . . . . Repair Stations . | . . . . Recycling Units 1 | . 1 . . Scanalyzers . | . . . . Garrison Access . | . . . . Total Hacks 26 | . 21 . 5 Successful 18 | . 14 . 4 Failed 8 | . 7 . 1 Catastrophic . | . . . . Database Lockouts . | . . . . Manual . | . . . . Terminals 22 | . 17 . 5 Fabricators . | . . . . Repair Stations . | . . . . Recycling Units 4 | . 4 . . Scanalyzers . | . . . . Garrison Access . | . . . . Terminal Hacks 14 | . 10 . 4 Record 9 | . 5 . 4 Prototype ID Bank 1 | . 1 . . Maintenance Status 1 | . 1 . . Investigation Status 2 | . 2 . . Zone Layout 1 | . 1 . . Fabricator Hacks . | . . . . Repair Station Hacks . | . . . . Recycling Unit Hacks 4 | . 4 . . Recycle Component 1 | . 1 . . Process 1 | . 1 . . Report Inventory 1 | . 1 . . Retrieve Matter 1 | . 1 . . Scanalyzer . | . . . . Garrison Access Hacks . | . . . . Unauthorized Hacks . | . . . . Terminals . | . . . . Fabricators . | . . . . Repair Stations . | . . . . Recycling Units . | . . . . Scanalyzers . | . . . . Garrison Access . | . . . . Data Cores Recovered 3 | . 2 . 1 Used 2 | . 1 . 1 Hacking Detections 3 | . 2 . 1 Full Trace Events 2 | . 1 . 1 Feedback Events . | . . . . Feedback Blocked . | . . . . Robot Schematics Acquired . | . . . . Robots Built . | . . . . Authchips . | . . . . Time . | . . . . Total Robot Build Rating . | . . . . Part Schematics Acquired . | . . . . Parts Built . | . . . . Authchips . | . . . . Time . | . . . . Total Part Build Rating . | . . . . Parts Repaired . | . . . . Time . | . . . . Parts Recycled 1 | . 1 . . Recycled Matter 126 | . 126 . . Retrieved Matter 126 | . 126 . . Retrieved Components . | . . . . Parts Scanalyzed . | . . . . Part Schematics Acquired . | . . . . Parts Damaged . | . . . . Bothacking | -11 -10 -9 -8 ------------ Run | Yrd Mat Mat Mat Used RIF Installer . | . . . . Robots Hacked . | . . . . Non-combat . | . . . . Combat . | . . . . Robot Hacks Applied . | . . . . Relay Couplers Released . | . . . . Fabnet Peak Effective % . | . . . . Robots Rewired . | . . . . Allies Hacked . | . . . . Hacks Repelled . | . . . . Allies | -11 -10 -9 -8 -------- Run | Yrd Mat Mat Mat Total Allies . | . . . . Largest Group . | . . . . Highest-Rated Group . | . . . . Highest-Rated Ally . | . . . . Total Orders . | . . . . Ally Attacks . | . . . . Total Damage . | . . . . Kills . | . . . . Allies Corrupted . | . . . . Allies Melted . | . . . . Intel | -11 -10 -9 -8 ------- Run | Yrd Mat Mat Mat Robot Analysis Total . | . . . . Derelict Logs Recovered . | . . . . Drone Launches . | . . . . Drone Recoveries . | . . . . Exploration | -11 -10 -9 -8 ------------- Run | Yrd Mat Mat Mat Turns Passed 1950 | 274 956 352 368 Spaces Moved 1297 | 280 711 171 135 Core 48 | 45 . . 3 Treads . | . . . . Legs 567 | . 286 171 110 Wheels 682 | 235 425 . 22 Hover . | . . . . Flight . | . . . . Fastest Speed 50 | 50 80 120 110 Average Speed 115 | 75 113 152 162 Slowest Speed 250 | 80 190 190 250 Overloaded Moves . | . . . . Propulsion Burnouts . | . . . . Robots Hopped . | . . . . Cave-ins Triggered . | . . . . Exploration Rate (%) 30 | 9 78 26 10 Regions Visited 3 Branch Regions . Pre-discovered Areas . | . . . . Known Exits Taken 1 | . . 1 . Unknown Exits Taken 2 | 1 1 . . Scrap Searched . | . . . . Spaces Dug . | . . . . Terrain Destroyed 56 | . . 6 50 Melee . | . . . . Projectile . | . . . . AOE 56 | . . 6 50 Terrain Rammed . | . . . . Walls Destroyed . | . . . . Machines Disabled . | . . . . Actions | -11 -10 -9 -8 --------- Run | Yrd Mat Mat Mat Total 1555 | 322 789 236 208 Wait 29 | . 2 27 . Move 1294 | 279 710 170 135 Hop . | . . . . Pick Up 40 | 11 18 4 7 Fast Attach . | . . . . Attach 24 | 6 1 6 11 Detach 2 | . . 2 . Swap 19 | 4 13 2 . Drop 15 | 2 9 3 1 Fire 103 | 20 36 22 25 Melee 29 | . . . 29 Ram . | . . . . Kick . | . . . . Crush . | . . . . Escape Stasis . | . . . . Rewire . | . . . . Trap . | . . . . Miscellaneous . | . . . . Route ------- -11/Scrapyard -10/Materials (discovered 3 exits: *Mat x2 / [*Min]) -9/Materials -8/Materials History --------- Turn | Location | Event 2 | -11/Scrapyard | Met Revision 17 77 | -11/Scrapyard | Discovered new exit (range 8) 275 | -11/Scrapyard | Entered Materials 314 | -10/Materials | Build established: Mutant 320 | -10/Materials | Discovered new exit (range 14) 542 | -10/Materials | Discovered new exit (range 6) 1033 | -10/Materials | Discovered new exit (range 9) 1231 | -10/Materials | Entered another Materials area 1231 | -9/Materials | Evolved 2 slots: Utility x2 1560 | -9/Materials | Discovered new exit (range 15) 1582 | -9/Materials | Identified exit to Materials 1583 | -9/Materials | Entered another Materials area 1583 | -8/Materials | Evolved 2 slots: Propulsion x2 1782 | -8/Materials | Lost 6 parts (1p2n1u2w) 1871 | -8/Materials | Core integrity fell below 50% 1896 | -8/Materials | Core integrity fell below 20% 1923 | -8/Materials | Lost 7 parts (1p4n1u1w) 1951 | -8/Materials | Destroyed by H-55 Commando with Gauss Rifle Last Messages --------------- U-05 Engineer system corrupted by crushing effect. U-05 Engineer knocked back. Slug penetrates Material Compactor. U-05 Engineer system terminally corrupted. Lgt. Ion Engine fried. Wheel destroyed. Acquired 15 matter. Penetrated by Slug. Sensor Array destroyed. Slug penetrates Wall. Acquired Wheel. Slug penetrates Wall. Critical hit (Burn: +37). Acquired 5 matter. Acquired 4 matter. Slug penetrates Wall. Hrd. Light Armor Plating destroyed. Slug penetrates Wall. [Achievement: First Step to Greatness] Map ----- +----------------------------------------------------+ | ?????????????????????????????????????????????????? | | ?????????????????????????????????????????????????? | | ?????????????????????????????????????????????????? | | ?????????????????????????????????????????????????? | | ?????????????????????????????????????????????????? | | ?????????????????????????????????????????????????? | | ?????????????????????????????????????????????????? | | ?????????????????????????????? ????????????????? | | ?????????????????????????????? ???????????????? | | ?????????????????????????????? #???????????????? | | ?????????????????????????????? #???????????????? | | ????????????????????????#????# #???????????????? | | ????????????????????????# ???# #???????????????? | | ????????????????????????#!?""# #???????????????? | | ???????????????^^^??????# T"# ###+##??????????? | | ??????????????????????### ""# # ###########? | | ??????????????????????? + # # # """ """ #? | | ??????????????????????# # !!!# # # """ """ #? | | ??????????????????????# # !!!# # | # """ """ #? | | ??????????????????????# #?!!!# # #? | | ??????????????????????# #?? # # #? | | ??????????????????????# ###### # #? | | ?????????????????????## # # # #? | | ?????????????????????## # " # # = # !#? | | ?????????????????????## # "T # #######+########? | | ????????????????????### s@ "%# #????? | | ????????????????????# #a# # #????? | | ????????????????????### # %# #????? | | ????????????????????# # # !####+###########????? | | ???????????????????## # # #? ?????????????? | | ???????????????????# ## # # """ ???????????? | | ???????????????????# ## ###### """ #??????????? | | ???????????????????# # # #### """ #??????????? | | ???????????????????# # ###??# #??????????? | | ???????????????????#### ##???# """ #??????????? | | ?????????????????????## #????# """ #??????????? | | ??????????????????????# #????# ?????#??????????? | | ??????????????????????# #????# ????????????????? | | ??????????????????????# #????###+????????????????? | | ??????????????????????# #??????#?????????????????? | | ??????????????????????# #????????????????????????? | | ??????????????????????#*#????????????????????????? | | ??????????????????????# #????????????????????????? | | ??????????????????????#%#????????????????????????? | | ????????????????????###+######???????????????????? | | ????????????????????# #???????????????????? | | ????????????????????# #???????????????????? | | ????????????????????# " #???????????????????? | | ????????????????????#""" #???????????????????? | | ????????????????????#""" %=#???????????????????? | +----------------------------------------------------+ Best States ------------- Heat Dissipation 31 Energy Generation 14 Energy Capacity 265 Matter Stores 300 Matter Capacity 300 Sight Range 18 Robot Scan Range 14 Terrain Scan Density 10 Armor Coverage 450 Evasion (%) 55 Item Schematics ----------------- None Robot Schematics ------------------ None Fabricated ------------ Nothing Alien Tech Used ----------------- None Achievements -------------- Dynamic Key First Step to Greatness One Hack Too Far Power Corrupts Challenges ------------ None Game ------ Seed FusionFissionKit Manual? 0 Play Time 00:53:39 Cumulative 0.8 hours Start 2024.04.29 @ 21:21:12 End 2024.04.29 @ 22:24:59 Sessions 1 Manual Loads 0 Difficulty Rogue Special Mode None Game No. 1 Rogue 1 Adventurer 0 Explorer 0 Win Type - Total 0 Types 0/0/0/0/0/0/0/0/0 Lore% 1 Gallery% 2 Achievement% 1 Wizard Run 0 Options --------- Layout 1 ASCII 0 Keyboard 0 Movement Mouse Keybinds 0 Fullscreen 1 Font 24/Proggy Map View 50x35 Zoom Use 0% Tactical HUD 0 Map Filters NONE Filters NONE Steam 1 RUN: b7f05e08-27ab-4a30-aa47-2ba2d14fa053